[Event "1st Semana Santa Torrevieja 2022"]
[Site "Torrevieja Alicante"]
[Date "2022.04.15"]
[Round "5.2"]
[White "Batsiashvili, Nino"]
[Black "Yuffa, Daniil"]
[Result "0-1"]
[ECO "E46"]
[WhiteElo "2491"]
[BlackElo "2576"]
[Annotator "TA"]
[PlyCount "72"]
[EventDate "2022.04.12"]
[EventType "swiss"]
[EventCountry "ESP"]
[SourceTitle "playchess.com"]
[Source "ChessBase"]
[SourceQuality "1"]
[TimeControl "5400+30"]

{[%evp 9,72,-10,3,7,7,7,7,-1,14,14,14,3,4,7,12,0,4,2,18,0,0,0,9,0,0,0,0,0,0,0,0,0,0,0,0,0,0,0,0,-1,0,-35,-44,-36,-39,-127,-126,-145,-143,-142,-147,-164,-69,-230,-216,-493,-483,-883,-772,-29986,-29987,-29987,-29988,-29993,-29994]} 1. d4 {[%emt 0:00:02]} Nf6 {[%emt 0:00:12]} 2. c4 {[%emt 0:00:04]} e6 {[%emt 0:00:23]} 3. Nc3 {[%emt 0:00:06]} Bb4 {[%emt 0:00:07]} 4. e3 {[%emt 0:00:04]} O-O {[%emt 0:00:09]} 5. Bd2 {[%emt 0:00:24]} c5 {[%emt 0:00:13]} 6. a3 {[%emt 0:01:34] E46: Nimzo-Indian: Rubinstein: 4 e3 0-0 5 Ne2 without early Bd3.} Bxc3 {[%emt 0:00:10]} 7. Bxc3 {[%emt 0:00:03]} Ne4 {[%emt 0:00:09]} 8. Rc1 {[%emt 0:00:13] The position is equal.} d6 {[%emt 0:02:20][%cal Oe6e5]} 9. Bd3 {[%emt 0:03:34]} Nxc3 (9... Qh4 {is interesting.} 10. Qc2 Nxc3 11. Nf3 Qh5) 10. Rxc3 {[%emt 0:00:03]} Nd7 {[%emt 0:01:32]} 11. Ne2 {[%emt 0:12:35]} b6 {[%emt 0:03:35]} 12. O-O {[%emt 0:05:15]} Bb7 {[%emt 0:08:54] [#]} 13. Qb1 $146 {[%emt 0:10:20]} (13. Qc2 {seems wilder.} Qh4 14. Rd1 Rad8 15. g3) ({Predecessor:} 13. d5 exd5 14. cxd5 Ne5 15. Bb1 Ba6 16. Re1 Bxe2 17. Qxe2 Qh4 18. e4 Rfe8 19. Qd2 b5 20. b3 {½-½ (20) Wengholm,A-Gromark,P Sweden 1994}) 13... h6 {[%emt 0:07:51]} 14. b4 {[%emt 0:00:26]} Rc8 {[%emt 0:02:43]} 15. Rd1 {[%emt 0:02:11]} Qg5 {[%emt 0:11:47][%csl Gb7][%cal Rg5g2] [#]} 16. Be4 {[%emt 0:03:40]} Bxe4 {[%emt 0:03:11]} 17. Qxe4 {[%emt 0:00:01]} cxb4 {[%emt 0:04:14]} 18. axb4 {[%emt 0:00:26]} Rc7 {[%emt 0:00:09] Prevents Qb7.} 19. Qc2 {[%emt 0:09:07]} a5 {[%emt 0:02:25]} 20. f4 {[%emt 0:07:44]} Qh4 {[%emt 0:01:42]} 21. bxa5 {[%emt 0:01:18]} bxa5 {[%emt 0:00:07]} 22. Ng3 {[%emt 0:00:39]} Nf6 {[%emt 0:02:00]} 23. Ra1 {[%emt 0:01:15]} Rfc8 {[%emt 0:04:22][%cal Of6d5] Hoping for ...Nd5!} 24. Qe2 {[%emt 0:06:03]} Rb7 {[%emt 0:07:58]} 25. c5 {[%emt 0:09:35]} Nd5 {[%emt 0:03:07]} 26. Rcc1 {[%emt 0:00:01]} dxc5 {[%emt 0:01:13][%cal Bd6c5,Bc5c4][%mdl 32]} 27. Rxa5 {[%emt 0:01:07]} ({Better is} 27. dxc5 $15 Rb3 28. Qa6) 27... c4 $1 $17 {[%emt 0:03:26]} 28. Rc5 {[%emt 0:08:54]} Rxc5 {[%emt 0:00:28] &Nero is more active.} 29. dxc5 {[%emt 0:00:01]} c3 {[%emt 0:01:24]} 30. Qf3 {[%emt 0:02:57] [#]} Rc7 {[%emt 0:20:58]} (30... Qe7 $1 $19 {[%cal Re7c5]} 31. c6 Rb2) 31. Ne4 {[%emt 0:01:20] Now White is beyond hope.} ({White should try} 31. Ne2 $15) 31... f5 $19 {[%emt 0:00:31]} 32. Nxc3 {[%emt 0:02:50]} (32. Nf2) 32... Nxc3 {[%emt 0:00:52][%cal Bd5c3,Bc3e2,Be2c1][%mdl 32]} 33. Qa8+ {[%emt 0:04:16]} (33. c6 $142) 33... Kh7 {[%emt 0:00:11] ( -> ...Ne2+)} 34. Qa5 {[%emt 0:00:04]} Ne2+ {[%emt 0:01:32] Black mates.} 35. Kf1 {[%emt 0:00:05]} Nxc1 {[%emt 0:00:19]} 36. Qxc7 {[%emt 0:00:01]} Qg4 {[%emt 0:00:14] Weighted Error Value: White=0.60/Black=0.05 (flawless)} 0-1

[Event "1st Semana Santa Torrevieja 2022"]
[Site "Torrevieja Alicante"]
[Date "2022.04.15"]
[Round "5.3"]
[White "Movsziszian, Karen"]
[Black "Dardha, Daniel"]
[Result "1/2-1/2"]
[ECO "A08"]
[WhiteElo "2441"]
[BlackElo "2541"]
[Annotator "TA"]
[PlyCount "90"]
[EventDate "2022.04.12"]
[EventType "swiss"]
[EventCountry "ESP"]
[SourceTitle "playchess.com"]
[Source "ChessBase"]
[SourceQuality "1"]
[TimeControl "5400+30"]

{[%evp 13,90,-11,-13,-35,0,0,0,0,8,-8,-4,-35,-27,-43,-29,-38,-43,-36,-29,-38,-42,-56,-52,-48,-50,-93,-89,-95,-92,-95,-95,-95,-88,-96,-88,-95,-91,-93,-81,-93,-87,-99,-86,-86,-85,-85,-81,-85,-85,-91,-79,-93,-85,-85,-85,-88,-70,-75,-36,-36,-14,-13,-17,-27,0,0,0,0,0,0,0,0,0,0,0,0,0,0,0]} 1. g3 {[%emt 0:00:14]} c5 {[%emt 0:00:21]} 2. Bg2 {[%emt 0:00:28]} Nc6 {[%emt 0:00:07]} 3. e4 {[%emt 0:01:05]} Nf6 {[%emt 0:04:48]} 4. d3 {[%emt 0:01:56]} d5 {[%emt 0:00:29]} 5. Nd2 {[%emt 0:00:17]} e5 {[%emt 0:01:24]} 6. Ngf3 {[%emt 0:00:23]} Be7 {[%emt 0:00:58]} 7. O-O {[%emt 0:00:05]} O-O {[%emt 0:00:05]} 8. Qe2 {[%emt 0:05:56] A08: King's Indian Attack.} dxe4 {[%emt 0:09:27]} 9. dxe4 {[%emt 0:00:15]} Nd4 {[%emt 0:00:32]} 10. Qd1 {[%emt 0:00:05] [#]} Nxf3+ $146 {[%emt 0:00:11]} ({Predecessor:} 10... Qc7 11. c3 Nxf3+ 12. Nxf3 Rd8 13. Qc2 c4 14. Nh4 Rd3 15. Bg5 h6 16. Bxf6 Bxf6 {½-½ (25) Skeels,J (2134)-Schubert,K (1837) LSS email 2013}) 11. Nxf3 {[%emt 0:04:00]} Qc7 {[%emt 0:00:45]} 12. Bg5 {[%emt 0:02:46]} c4 {[%emt 0:05:17]} ({Much weaker is} 12... Nxe4 13. Bxe7 Qxe7 14. Qd5 $11) 13. c3 {[%emt 0:01:26]} Be6 {[%emt 0:03:46]} (13... Nxe4 14. Bxe7 Qxe7 15. Re1 $14) 14. Qe2 {[%emt 0:00:51]} h6 {[%emt 0:01:49]} 15. Bxf6 {[%emt 0:00:05]} Bxf6 {[%emt 0:00:03]} 16. Rfd1 {[%emt 0:00:22]} Be7 {[%emt 0:01:55]} 17. Nd2 {[%emt 0:22:06]} Bc5 {[%emt 0:01:36]} 18. Nf1 {[%emt 0:01:01]} Qb6 {[%emt 0:02:08]} 19. Ne3 {[%emt 0:07:04]} Bxe3 {[%emt 0:02:42]} 20. Qxe3 {[%emt 0:00:48]} Qxe3 {[%emt 0:00:09]} 21. fxe3 {[%emt 0:00:02]} Rfd8 {[%emt 0:01:52]} 22. Kf2 {[%emt 0:01:11]} Kf8 {[%emt 0:00:19]} 23. Bf3 {[%emt 0:00:16]} Ke7 {[%emt 0:01:06]} 24. Rxd8 {[%emt 0:00:08]} Kxd8 $17 {[%emt 0:01:40][%mdl 4096] Endgame KRB-KRB} 25. Rd1+ {[%emt 0:05:19]} Kc7 {[%emt 0:00:26]} 26. Ke1 {[%emt 0:00:34]} b5 {[%emt 0:02:21]} 27. Kd2 {[%emt 0:00:47]} Bd7 {[%emt 0:00:43]} 28. Rf1 {[%emt 0:02:48]} Rd8 {[%emt 0:02:34] [#] Hoping for ...Bh3+.} 29. Kc1 {[%emt 0:00:08]} Bc6 {[%emt 0:01:38]} 30. Bd1 {[%emt 0:00:33]} f6 {[%emt 0:02:27]} (30... Bxe4 $6 31. Rxf7+ Rd7 32. Rf8 $11) 31. Bc2 {[%emt 0:00:01]} a5 {[%emt 0:00:47]} 32. Rd1 {[%emt 0:11:05]} Rh8 {[%emt 0:04:07]} 33. b3 {[%emt 0:05:17]} cxb3 {[%emt 0:03:23]} 34. axb3 {[%emt 0:00:01]} h5 {[%emt 0:03:43]} 35. h4 {[%emt 0:00:05]} g5 {[%emt 0:05:59]} 36. Rf1 {[%emt 0:02:12]} gxh4 {[%emt 0:00:22]} 37. gxh4 {[%emt 0:00:03]} Rg8 {[%emt 0:00:09]} 38. Bd1 {[%emt 0:03:46] Against Rg4} ({But not} 38. Rxf6 a4 39. Rf2 Rg3 $17) 38... Bxe4 {[%emt 0:06:45]} 39. Rxf6 {[%emt 0:02:00] The position is equal.} Rg1 {[%emt 0:02:41]} 40. Kd2 {[%emt 0:00:01]} Rg2+ {[%emt 0:04:52]} 41. Kc1 {[%emt 0:00:00]} Ra2 {[%emt 0:09:43]} 42. Re6 {[%emt 0:02:24]} Ra1+ {[%emt 0:00:09]} 43. Kd2 {[%emt 0:00:01]} Ra2+ {[%emt 0:01:01]} 44. Kc1 {[%emt 0:00:08]} Ra1+ {[%emt 0:00:31]} 45. Kd2 {[%emt 0:00:01]} Ra2+ {[%emt 0:01:32] Weighted Error Value: White=0.06 (flawless) /Black=0.07 (flawless)} 1/2-1/2

[Event "1st Semana Santa Torrevieja 2022"]
[Site "Torrevieja Alicante"]
[Date "2022.04.15"]
[Round "5.4"]
[White "Cruz Lledo, Pablo"]
[Black "Rakotomaharo, Fy Antenaina"]
[Result "1/2-1/2"]
[ECO "D78"]
[WhiteElo "2430"]
[BlackElo "2474"]
[Annotator "TA"]
[PlyCount "60"]
[EventDate "2022.04.12"]
[EventType "swiss"]
[EventCountry "ESP"]
[SourceTitle "playchess.com"]
[Source "ChessBase"]
[SourceQuality "1"]
[TimeControl "5400+30"]

{[%evp 21,60,14,4,0,0,0,0,0,0,0,0,-7,-13,-13,0,-39,-29,-53,-54,-48,-33,-42,-47,-52,-17,-54,-62,-57,-64,-57,-45,-68,-7,-5,0,0,0,-4,0,0,3]} 1. d4 {[%emt 0:01:17]} Nf6 {[%emt 0:01:15]} 2. Nf3 {[%emt 0:00:04]} g6 {[%emt 0:00:20]} 3. g3 {[%emt 0:00:06]} d5 {[%emt 0:00:05]} 4. Bg2 {[%emt 0:00:06]} Bg7 {[%emt 0:00:03]} 5. O-O {[%emt 0:00:06]} O-O {[%emt 0:00:05]} 6. Nbd2 {[%emt 0:00:04]} c6 {[%emt 0:00:50]} 7. c4 {[%emt 0:01:20]} a5 {[%emt 0:01:26]} 8. b3 {[%emt 0:00:20]} Bf5 {[%emt 0:00:30]} 9. Bb2 {[%emt 0:00:11]} Ne4 {[%emt 0:00:14]} 10. Nh4 {[%emt 0:00:14]} Nxd2 {[%emt 0:01:24]} 11. Qxd2 {[%emt 0:00:02]} Be6 {[%emt 0:00:23]} 12. e4 {[%emt 0:06:51] D78: Fianchetto Grünfeld: 6 0-0 c6.} dxc4 {[%emt 0:10:16]} 13. d5 {[%emt 0:00:17] [#] Hoping for Bxg7.} c3 {[%emt 0:00:11]} 14. Bxc3 {[%emt 0:00:08]} Bxc3 {[%emt 0:00:06]} 15. Qxc3 {[%emt 0:00:12]} cxd5 {[%emt 0:00:03]} 16. Rfd1 {[%emt 0:06:37][%cal Re4d5]} d4 {[%emt 0:00:16]} 17. Rxd4 {[%emt 0:01:23]} Qb6 {[%emt 0:00:12] [#]} 18. Nf3 $146 {[%emt 0:06:47]} ({Predecessor:} 18. e5 Rc8 19. Qd2 Rc2 20. Rd8+ Kg7 21. Qxc2 Qxd8 22. Bxb7 Ra7 23. Rd1 Qb6 24. Be4 {½-½ (30) Kozusek,D (2172)-Piesik,P (2306) Czech Republic 2016}) 18... Rc8 {[%emt 0:03:09]} 19. Qd2 {[%emt 0:02:54]} Nc6 {[%emt 0:01:34]} 20. Ra4 {[%emt 0:00:19]} Qd8 {[%emt 0:17:08] [#] Threatens to win with ...Qxd2.} 21. Qh6 {[%emt 0:01:32] White wants to mate with Ng5.} Qf8 {[%emt 0:00:04]} (21... f6 {with more complications.} 22. e5 Nb4 23. Re1 Bf7) 22. Qxf8+ {[%emt 0:01:10]} Kxf8 {[%emt 0:00:55]} 23. Nd4 {[%emt 0:05:24]} Nxd4 {[%emt 0:05:10]} 24. Rxd4 {[%emt 0:00:02]} Rc2 {[%emt 0:00:06]} 25. e5 {[%emt 0:01:53]} Rb8 {[%emt 0:00:28]} 26. b4 {[%emt 0:03:41]} axb4 {[%emt 0:03:25]} (26... b6 $15) 27. Rxb4 $11 {[%emt 0:00:07] The position is equal.} Rxa2 {[%emt 0:00:03]} 28. Rxa2 {[%emt 0:00:13]} Bxa2 {[%emt 0:00:04]} 29. Rxb7 {[%emt 0:00:06]} Rxb7 {[%emt 0:00:03]} 30. Bxb7 {[%emt 0:00:13]} Ke8 {[%emt 0:00:34] Weighted Error Value: White=0.09 (flawless) /Black=0.10 (very precise)} 1/2-1/2

[Event "1st Semana Santa Torrevieja 2022"]
[Site "Torrevieja Alicante"]
[Date "2022.04.15"]
[Round "5.5"]
[White "Cuenca Jimenez, Jose Fernando"]
[Black "Suarez Uriel, Adrian"]
[Result "1-0"]
[ECO "D97"]
[WhiteElo "2552"]
[BlackElo "2348"]
[Annotator "TA"]
[PlyCount "114"]
[EventDate "2022.04.12"]
[EventType "swiss"]
[EventCountry "ESP"]
[SourceTitle "playchess.com"]
[Source "ChessBase"]
[SourceQuality "1"]
[TimeControl "5400+30"]

{[%evp 14,114,20,21,25,9,9,9,8,9,9,7,8,8,12,7,10,10,6,9,9,6,11,12,6,7,6,10,6,10,13,10,11,11,10,10,11,11,18,19,16,16,20,7,7,0,0,0,0,10,10,0,17,23,25,16,16,16,28,11,141,145,148,104,94,87,730,672,652,835,777,691,748,748,389,821,560,666,1317,1197,1426,1399,1418,1348,1210,1074,1595,1720,8143,7218,6808,6640,6187,6111,6087,5152,6732,6704,5722,4981,5181,3191,29985]} 1. d4 {[%emt 0:00:03]} Nf6 {[%emt 0:02:07]} 2. c4 {[%emt 0:00:29]} g6 {[%emt 0:00:05]} 3. Nc3 {[%emt 0:00:15]} d5 {[%emt 0:00:04]} 4. Nf3 {[%emt 0:00:43]} Bg7 {[%emt 0:00:05]} 5. Qb3 {[%emt 0:00:13]} dxc4 {[%emt 0:00:11]} 6. Qxc4 {[%emt 0:00:08]} O-O {[%emt 0:00:03]} 7. e4 {[%emt 0:00:47]} Nc6 {[%emt 0:00:09]} 8. Be2 {[%emt 0:04:04]} e5 {[%emt 0:00:06][%cal Re5d4] is currently scoring better than 8...Bg4. D97: Grünfeld: Russian System: 7 e4, replies other than 7...Bg4.} 9. dxe5 {[%emt 0:01:24]} Ng4 {[%emt 0:00:05]} 10. Nd5 {[%emt 0:01:27] With the idea Bg5.} Be6 {[%emt 0:20:07] The position is equal.} 11. O-O {[%emt 0:00:39]} Ngxe5 {[%emt 0:01:02]} (11... Ncxe5 {seems wilder.} 12. Qxc7 Nxf3+ 13. Bxf3 Ne5) 12. Nxe5 {[%emt 0:00:10]} Nxe5 {[%emt 0:00:02]} 13. Qxc7 {[%emt 0:00:12]} Bxd5 {[%emt 0:00:03]} 14. Qxd8 {[%emt 0:00:05]} Rfxd8 {[%emt 0:00:12]} 15. exd5 {[%emt 0:00:07]} Rxd5 {[%emt 0:00:02]} 16. Be3 {[%emt 0:00:50]} Nc6 {[%emt 0:05:52]} 17. Rfd1 {[%emt 0:08:58]} Rad8 {[%emt 0:00:19]} 18. Rxd5 {[%emt 0:00:16]} Rxd5 {[%emt 0:00:05]} 19. Rb1 {[%emt 0:00:39] [#]} Bd4 $146 {[%emt 0:08:23]} ({Predecessor:} 19... Nd4 20. Bc4 Rd7 21. Bf1 h5 22. g3 b6 23. Bh3 Rd5 24. Bg2 Rd7 25. Bh3 Rd5 {½-½ (36) Basso,P (2550)-Rakotomaharo,F (2435) Paleochora 2021}) 20. Rd1 {[%emt 0:11:47]} Re5 {[%emt 0:01:39]} 21. Bxd4 {[%emt 0:04:06]} Nxd4 $11 {[%emt 0:00:03][%mdl 4096] Endgame KRB-KRN} 22. Bc4 {[%emt 0:03:02]} b5 {[%emt 0:02:33]} 23. Bf1 {[%emt 0:05:06]} Rd5 {[%emt 0:00:09][%cal Od4f3] [#] Threatens to win with ...Nf3+!} 24. Rd3 {[%emt 0:01:54] Prevents Nf3+.} b4 {[%emt 0:03:30]} 25. f4 {[%emt 0:01:52]} h5 {[%emt 0:02:20]} 26. Kf2 {[%emt 0:05:48]} Rd6 {[%emt 0:08:30]} 27. g3 {[%emt 0:06:57]} Kf8 {[%emt 0:01:35]} 28. Bh3 {[%emt 0:02:29]} Ke7 {[%emt 0:00:09]} 29. Ke3 {[%emt 0:00:42]} Nc2+ {[%emt 0:00:32]} 30. Ke2 $1 {[%emt 0:04:34]} Nd4+ {[%emt 0:00:04]} 31. Kf2 {[%emt 0:00:45]} a5 {[%emt 0:04:07]} 32. Rd2 {[%emt 0:02:08]} Kf6 {[%emt 0:05:06]} 33. Bf1 {[%emt 0:03:55]} Ke7 {[%emt 0:04:21]} 34. Bc4 {[%emt 0:00:36]} f6 {[%emt 0:04:13]} 35. Rd3 {[%emt 0:01:27]} Rd8 {[%emt 0:18:15]} 36. b3 {[%emt 0:10:28]} h4 {[%emt 0:05:19]} (36... Rd7 $11 {remains equal.}) 37. gxh4 $16 {[%emt 0:06:47][%cal Bg3h4,Bh4h5,Bh5g6][%mdl 32]} Rd6 {[%emt 0:00:29]} 38. Kg3 {[%emt 0:03:11]} f5 {[%emt 0:02:01]} 39. h5 {[%emt 0:03:14]} Ne2+ $2 {[%emt 0:00:22][%mdl 8192] Loses the game.} (39... gxh5 $16 40. Kh4 Kf6) 40. Kf3 $18 {[%emt 0:00:13]} Nd4+ {[%emt 0:00:02]} 41. Ke3 {[%emt 0:00:57]} Nc2+ {[%emt 0:00:47]} 42. Kd2 $1 {[%emt 0:00:20] [#] aiming for Rxd6.} Nd4 {[%emt 0:00:09]} 43. hxg6 {[%emt 0:01:29] g7 is the strong threat.} Kf6 {[%emt 0:00:08]} 44. Bf7 $2 {[%emt 0:02:53]} (44. Ke3 Nc2+ 45. Kf2 Rxd3 46. Bxd3) 44... Kg7 {[%emt 0:00:03] White is clearly winning.} 45. Kd1 {[%emt 0:00:47]} Kf6 {[%emt 0:00:17]} 46. h4 {[%emt 0:00:14][%cal Bh2h4,Bh4h5][%mdl 32]} Kg7 {[%emt 0:00:03]} 47. h5 {[%emt 0:00:25]} Rd8 {[%emt 0:00:11]} 48. Ke1 {[%emt 0:01:23]} Nc2+ {[%emt 0:01:07]} 49. Kd2 {[%emt 0:00:02]} Nd4 {[%emt 0:00:04]} 50. Bc4 {[%emt 0:00:43]} Kf6 {[%emt 0:01:17]} 51. Ke3 {[%emt 0:00:21]} Nc2+ {[%emt 0:00:22]} 52. Kf2 {[%emt 0:00:04]} Rxd3 {[%emt 0:01:01]} 53. Bxd3 {[%emt 0:00:04]} Nd4 {[%emt 0:00:05]} 54. Bc4 {[%emt 0:00:26]} Nc2 {[%emt 0:00:57]} 55. Ke2 {[%emt 0:01:09]} Nd4+ {[%emt 0:00:47]} 56. Kd3 {[%emt 0:00:08]} Nf3 {[%emt 0:00:02]} 57. Bd5 {[%emt 0:00:27]} Ne1+ {[%emt 0:00:08] Weighted Error Value: White=0.03 (flawless) /Black=0.13 (very precise)} 1-0

[Event "1st Semana Santa Torrevieja 2022"]
[Site "Torrevieja Alicante"]
[Date "2022.04.15"]
[Round "5.6"]
[White "Grigoryan, Karen H."]
[Black "Ayats Llobera, Gerard"]
[Result "1-0"]
[ECO "C14"]
[WhiteElo "2636"]
[BlackElo "2438"]
[Annotator "TA"]
[PlyCount "63"]
[EventDate "2022.04.12"]
[EventType "swiss"]
[EventCountry "ESP"]
[SourceTitle "playchess.com"]
[Source "ChessBase"]
[SourceQuality "1"]
[TimeControl "5400+30"]

{[%evp 13,63,10,24,16,26,17,12,10,29,18,20,10,27,-11,10,20,39,34,31,0,0,-18,28,5,27,23,33,18,125,144,153,150,142,145,195,185,279,277,365,366,381,383,366,381,358,361,366,362,356,325,396,325]} 1. e4 {[%emt 0:00:06]} e6 {[%emt 0:00:04]} 2. d4 {[%emt 0:00:04]} d5 {[%emt 0:00:08]} 3. Nc3 {[%emt 0:00:07]} Nf6 {[%emt 0:00:05]} 4. Bg5 {[%emt 0:00:58]} Be7 {[%emt 0:00:05]} 5. e5 {[%emt 0:00:09]} Nfd7 {[%emt 0:00:02]} 6. h4 {[%emt 0:00:15]} h6 {[%emt 0:00:25]} 7. Bxe7 {[%emt 0:00:32]} Qxe7 {[%emt 0:00:03]} 8. Qd2 {[%emt 0:02:39] C14: French: Classical System: 4 Bg5 Be7 main line.} a6 {[%emt 0:00:13]} 9. f4 {[%emt 0:00:10]} c5 {[%emt 0:00:13]} 10. Nf3 {[%emt 0:00:07] The position is equal.} Nc6 {[%emt 0:00:08]} 11. O-O-O {[%emt 0:02:03]} b5 {[%emt 0:00:15]} 12. dxc5 {[%emt 0:00:26]} Nxc5 {[%emt 0:01:34]} 13. Bd3 {[%emt 0:00:58]} Bb7 {[%emt 0:06:22]} 14. Ne2 {[%emt 0:01:20] [#]} Ne4 $146 {[%emt 0:10:02]} ({Predecessor:} 14... d4 15. Nexd4 Nxd4 16. Nxd4 O-O 17. Qf2 Rfd8 18. Rhe1 Qc7 19. Kb1 Bd5 20. Re3 Qa5 {1-0 (44) Berg,E (2616)-Kovacevic,A (2582) Plovdiv 2010}) 15. Qe3 {[%emt 0:00:51]} (15. Bxe4 dxe4 16. Nfd4 Rd8 $11) 15... Na5 {[%emt 0:04:27]} 16. Ned4 {[%emt 0:02:53]} (16. Kb1 $14 {is more appropriate.}) 16... Nc4 $11 {[%emt 0:02:44]} 17. Qe1 {[%emt 0:03:23]} O-O-O {[%emt 0:03:38]} (17... Nc5 {is superior.}) 18. c3 {[%emt 0:07:31]} Kb8 {[%emt 0:00:46]} 19. Kb1 {[%emt 0:01:06]} Rc8 {[%emt 0:04:25]} 20. h5 {[%emt 0:03:14]} Nxb2 {[%emt 0:27:53]} 21. Kxb2 $16 {[%emt 0:00:23] Threatens to win with Bxe4.} Rxc3 {[%emt 0:00:14] [#] Hoping for ...Qa3+.} 22. Nb3 {[%emt 0:03:20] And now Bxe4 would win.} Rhc8 {[%emt 0:00:36][%cal Oa6a5]} 23. Nfd4 {[%emt 0:01:03]} ({Avoid the trap} 23. Ka1 $2 {[#]} Rxb3 $1 {[%mdl 512]} 24. Nd4 Ra3 $19) 23... b4 {[%emt 0:08:25]} (23... Qb4 $2 24. Bxe4 (24. Ka1 Qa3 $16) 24... dxe4 25. Rh3 $18) (23... f6 $16 {was called for.}) 24. Rh3 {[%emt 0:07:52]} Qc7 {[%emt 0:05:25]} (24... f6 $142 25. Ka1 R3c7) 25. Ne2 $18 {[%emt 0:11:36]} Rc6 {[%emt 0:11:22]} 26. Nbd4 {[%emt 0:08:50]} ({Not} 26. Bxe4 dxe4 27. Ka1 Rc4 $16) 26... Rb6 {[%emt 0:02:24]} 27. Bxe4 {[%emt 0:00:25]} dxe4 {[%emt 0:00:02]} 28. Rc1 {[%emt 0:00:08]} Qd7 {[%emt 0:01:32]} 29. Rxc8+ {[%emt 0:00:30]} Qxc8 {[%emt 0:00:01]} 30. Qc1 {[%emt 0:01:58] Qxc8+ is the strong threat.} Qf8 {[%emt 0:00:04]} 31. Qc2 {[%emt 0:03:09]} Qe7 {[%emt 0:05:09]} 32. Rh1 {[%emt 0:01:06] Weighted Error Value: White=0.06 (flawless) /Black=0.29 (precise)} 1-0

[Event "1st Semana Santa Torrevieja 2022"]
[Site "Torrevieja Alicante"]
[Date "2022.04.15"]
[Round "5.7"]
[White "Martinez Ramirez, Lennis"]
[Black "Nasuta, Grzegorz"]
[Result "0-1"]
[ECO "A29"]
[WhiteElo "2437"]
[BlackElo "2530"]
[Annotator "TA"]
[PlyCount "80"]
[EventDate "2022.04.12"]
[EventType "swiss"]
[EventCountry "ESP"]
[SourceTitle "playchess.com"]
[Source "ChessBase"]
[SourceQuality "1"]
[TimeControl "5400+30"]

{[%evp 19,80,0,15,17,15,18,1,0,4,13,14,7,7,0,64,-16,-12,-8,10,33,31,-14,-18,-168,-170,-178,-175,-194,-186,-171,-181,-267,-252,-247,-251,-278,-278,-315,-314,-465,-454,-453,-452,-461,-452,-556,-413,-531,-428,-1087,-731,-712,-666,-1267,-1236,-1417,-1374,-1362,-1335,-1324,-1219,-29980,-29981]} 1. c4 {[%emt 0:00:01]} e5 {[%emt 0:01:10]} 2. Nc3 {[%emt 0:00:32]} Nf6 {[%emt 0:00:06]} 3. g3 {[%emt 0:00:20]} d5 {[%emt 0:00:05]} 4. cxd5 {[%emt 0:00:05]} Nxd5 {[%emt 0:00:04]} 5. Bg2 {[%emt 0:00:06]} Nb6 {[%emt 0:00:04]} 6. Nf3 {[%emt 0:00:36]} Nc6 {[%emt 0:00:06]} 7. O-O {[%emt 0:01:19]} Be7 {[%emt 0:00:04]} 8. b3 {[%emt 0:09:36]} O-O {[%emt 0:00:19]} 9. Bb2 {[%emt 0:00:12]} Re8 {[%emt 0:00:54]} 10. Rc1 {[%emt 0:01:01]} Bf8 {[%emt 0:00:11]} 11. d3 {[%emt 0:02:45] A29: English Opening: Four Knights Variation with 4 g3.} Bg4 {[%emt 0:05:07]} 12. Ne4 {[%emt 0:05:00] is the legacy move (12.h3).} Qd7 {[%emt 0:18:18]} 13. Nc5 {[%emt 0:01:42] The position is equal.} Bxc5 {[%emt 0:00:17]} 14. Rxc5 {[%emt 0:00:02]} f6 {[%emt 0:00:49] [#]} 15. Qc2 $146 {[%emt 0:11:00]} ({Predecessor:} 15. b4 e4 16. dxe4 Qxd1 17. Rxd1 Na4 18. Rc2 Nxb4 19. Rcd2 Nxa2 20. e5 fxe5 21. Ba1 {½-½ (27) Draskovic,L (2458)-Kovacevic,A (2534) Belgrade 2017}) 15... a5 {[%emt 0:10:15]} 16. Rc1 {[%emt 0:00:15]} a4 {[%emt 0:03:10]} (16... Nb4 $11 17. Qd2 Nxa2 18. Rxc7 Qd8) 17. Qb1 {[%emt 0:05:06]} ({White should try} 17. bxa4 $14 Nxa4 18. Nxe5 fxe5 19. Rxc6 bxc6 20. Bxc6) 17... Qf7 $11 {[%emt 0:13:59]} 18. Bc3 {[%emt 0:07:43]} Be6 {[%emt 0:08:20][%cal Ra4b3,Bg4e6,Be6d5,Bd5c6][%mdl 32]} 19. Nd2 {[%emt 0:02:46]} axb3 {[%emt 0:02:15]} 20. axb3 {[%emt 0:00:08]} Bd5 {[%emt 0:00:06]} 21. f3 {[%emt 0:10:23] White does not recover from this.} (21. Be4 $11 {and White is okay.}) 21... Nd7 $19 {[%emt 0:06:32]} 22. Rb5 {[%emt 0:03:12]} Nd4 {[%emt 0:01:24]} 23. Bxd4 {[%emt 0:01:21]} exd4 {[%emt 0:00:02]} 24. Ne4 {[%emt 0:01:00]} Bc6 {[%emt 0:01:10]} 25. Rf5 {[%emt 0:01:57]} (25. Rb4 $142) 25... g6 {[%emt 0:19:50]} 26. Rf4 {[%emt 0:00:13] [#]} Qe6 $1 {[%emt 0:00:05] ...g5 is the strong threat.} 27. h4 {[%emt 0:06:10] Prevents g5.} f5 {[%emt 0:01:17]} 28. Bh3 {[%emt 0:09:00]} Nb6 {[%emt 0:04:32] Strongly threatening ...Nd5.} 29. b4 {[%emt 0:03:15]} (29. Qb2 {might work better.}) 29... Nd5 {[%emt 0:00:31]} 30. b5 {[%emt 0:00:04]} Bd7 {[%emt 0:00:46]} 31. Qb2 {[%emt 0:01:30]} Qe5 {[%emt 0:03:21]} 32. Rc5 {[%emt 0:01:02][%cal Oc5d5] Black must now prevent Rxd5!} Be6 {[%emt 0:00:23] Hoping for ...b6.} (32... Nxf4 $2 33. Rxe5 Nxh3+ 34. Kh2 fxe4 35. Qxd4 $18) 33. Nf2 {[%emt 0:15:23]} b6 {[%emt 0:00:12]} 34. Rc4 {[%emt 0:00:43]} (34. Rxd5 $142 Qxd5 35. Qxd4) 34... Nxf4 {[%emt 0:01:10]} 35. gxf4 {[%emt 0:00:01]} Qxf4 {[%emt 0:00:06]} 36. Rxd4 {[%emt 0:00:03]} Qg3+ {[%emt 0:00:15]} 37. Bg2 {[%emt 0:00:01]} Ra2 {[%emt 0:00:13]} 38. Qc1 {[%emt 0:01:50]} Rxe2 {[%emt 0:00:07]} 39. Qf1 {[%emt 0:00:06]} Bf7 {[%emt 0:00:38] ( -> ...Re1)} 40. Ne4 {[%emt 0:01:05] [#]} fxe4 $1 {[%emt 0:00:52] Weighted Error Value: White=0.92/Black=0.30} 0-1